bitfinex/quotes_SOLUSD_20240930
["timestamp","ask_amount","ask_price","bid_price","bid_amount"]
[1727687182388,6.51489,156.51,156.47,6.3909]
[1727687182698,6.51489,156.51,156.46,6.3913]
[1727687182699,0.12549,156.5,156.46,6.3913]
[1727687186094,20.0,156.53,156.48,6.3904]
[1727687186264,0.25098,156.52,156.48,6.3904]
[1727687186470,0.12549,156.52,156.48,6.3904]
[1727687186899,15.7985,156.54,156.47,10.28772719]
[1727687187083,0.12549,156.53,156.5,6.3894]
[1727687187270,15.7985,156.54,156.49,10.28772719]
[1727687187598,15.7985,156.54,156.51,6.3893]
[1727687194902,15.7985,156.54,156.52,6.3889]
[1727687195479,15.7985,156.54,156.51,6.3893]
[1727687195885,15.7985,156.54,156.49,6.3898]
[1727687195886,0.12549,156.53,156.49,6.3898]
[1727687196191,0.12549,156.53,156.48,10.28772719]
[1727687196401,0.12549,156.53,156.5,6.3896]
[1727687197923,6.51419,156.53,156.48,16.67792719]
[1727687198201,6.51419,156.53,156.49,6.3901]
[1727687199508,0.25098,156.51,156.47,6.3908]
[1727687199805,0.12549,156.51,156.48,6.3905]
[1727687201084,6.51489,156.51,156.46,10.28772719]
[1727687203191,6.51489,156.51,156.44,10.28772719]
[1727687203493,0.12549,156.52,156.45,6.3917]
[1727687203494,0.12549,156.49,156.45,6.3917]
[1727687203804,16.515,156.48,156.44,6.3921]
[1727687204008,0.12549,156.47,156.43,6.3925]
[1727687204607,6.3914,156.46,156.41,6.3933]
[1727687205305,0.12549,156.47,156.41,6.3933]
[1727687205306,26.64198,156.47,156.41,6.3933]
[1727687205509,26.64198,156.47,156.42,6.3929]
[1727687209201,26.64198,156.47,156.4,16.68112719]
[1727687209202,0.12549,156.45,156.4,16.68112719]
[1727687209497,0.12549,156.45,156.41,6.3934]
[1727687211407,0.12549,156.46,156.42,10.28772719]
[1727687212202,0.12549,156.46,156.43,6.3922]
[1727687212618,0.12549,156.46,156.42,16.68062719]
[1727687213097,0.12549,156.46,156.41,6.3933]
[1727687213098,6.51699,156.46,156.41,6.3933]
[1727687214622,6.51699,156.46,156.42,6.393]
[1727687214805,0.12549,156.46,156.42,16.68072719]
[1727687215317,6.51689,156.46,156.42,16.68072719]
[1727687215614,6.51689,156.46,156.42,6.393]
[1727687216003,6.51689,156.46,156.41,6.3933]
[1727687219715,6.51689,156.46,156.42,6.393]
[1727687222521,0.12549,156.44,156.38,10.28772719]
[1727687222723,0.12549,156.44,156.4,6.3935]
[1727687224325,12.92029,156.44,156.4,6.3935]
[1727687224629,12.92029,156.44,156.38,10.28772719]
[1727687224630,12.92029,156.44,156.39,6.3942]
[1727687225501,20.0,156.43,156.39,6.3942]
[1727687226530,35.6481,156.43,156.39,6.3942]
[1727687227211,0.12549,156.42,156.39,6.3942]
[1727687228330,6.51849,156.42,156.37,6.3947]
[1727687228524,6.51849,156.42,156.38,6.3945]
[1727687228712,0.12549,156.42,156.38,6.3945]
[1727687230500,6.51859,156.42,156.38,6.3945]
[1727687231228,6.07639932,156.42,156.38,6.3945]
[1727687231929,35.6481,156.43,156.39,6.3942]
[1727687232612,15.6481,156.43,156.39,10.28772719]
[1727687232799,15.7616,156.47,156.41,10.28772719]
[1727687233005,15.7616,156.47,156.42,6.393]
[1727687233006,6.3914,156.46,156.42,6.393]
[1727687233227,6.3914,156.46,156.41,10.28772719]
[1727687233228,6.3914,156.46,156.35,0.25098]
[1727687233520,6.3914,156.46,156.32,15.1113]
[1727687233521,22.4078,156.47,156.4,10.28772719]
[1727687233724,22.4078,156.47,156.32,15.1113]
[1727687233725,6.3923,156.44,156.39,6.3941]
[1727687233936,6.3927,156.43,156.38,6.3946]
[1727687234246,0.12549,156.42,156.38,6.3946]
[1727687234534,42.63099,156.42,156.38,6.3946]
[1727687234739,42.63099,156.42,156.36,10.28772719]
[1727687234945,6.394,156.4,156.35,6.3955]
[1727687235234,42.85369,156.42,156.38,10.28772719]
[1727687235235,16.1124,156.42,156.38,10.28772719]
[1727687235419,22.7282,156.46,156.4,10.28772719]
[1727687235625,22.7282,156.46,156.42,10.28772719]
[1727687236141,22.7282,156.46,156.44,6.3921]
[1727687237743,22.7282,156.46,156.43,6.3925]
[1727687239339,22.7282,156.46,156.42,10.28772719]
[1727687241144,22.7282,156.46,156.34,0.2622171]
[1727687241145,22.7282,156.46,156.35,0.25098]
[1727687241442,22.7282,156.46,156.42,10.28772719]
[1727687243622,20.0,156.47,156.44,10.28772719]
[1727687244845,22.2925,156.5,156.46,10.28772719]
[1727687245019,16.2664,156.5,156.48,10.28772719]
[1727687245223,22.3522,156.54,156.48,10.28772719]
[1727687245545,28.7403,156.54,156.5,10.28772719]
[1727687246334,22.3522,156.54,156.5,10.28772719]
[1727687246534,16.1326,156.54,156.52,10.28772719]
[1727687246847,22.3522,156.61,156.53,1.27770844]
[1727687247028,22.3522,156.61,156.55,10.28772719]
[1727687247236,22.3522,156.61,156.46,2.0]
[1727687247237,28.7378,156.61,156.57,10.28772719]
[1727687247737,22.3522,156.61,156.54,16.05012474]
[1727687247926,20.0,156.6,156.55,1.27731817]
[1727687248247,22.3522,156.61,156.56,16.05012474]
[1727687248958,22.3522,156.61,156.54,16.05012474]
[1727687249127,28.7374,156.61,156.54,16.05012474]
[1727687249523,22.3522,156.61,156.54,16.05012474]
[1727687249838,6.3859,156.6,156.54,16.05012474]
[1727687251155,0.12549,156.59,156.51,36.05012474]
[1727687251356,6.51169,156.59,156.51,16.05012474]
[1727687251535,44.027864,156.6,156.5,16.3799]
[1727687251735,20.12549,156.6,156.51,17.32769845]
[1727687252256,22.3522,156.61,156.57,16.05012474]
[1727687252447,6.384,156.64,156.57,16.05012474]
[1727687252674,6.384,156.64,156.58,1.27727367]
[1727687254253,6.384,156.64,156.57,16.05012474]
[1727687254456,6.51009,156.63,156.55,16.05012474]
[1727687254840,0.12549,156.63,156.55,16.05012474]
[1727687255045,6.3849,156.62,156.55,16.05012474]
[1727687255240,6.3849,156.62,156.54,20.0]
[1727687256948,6.3849,156.62,156.55,1.277265]
[1727687257160,6.3849,156.62,156.54,20.0]
[1727687257161,0.12549,156.63,156.57,16.05012474]
[1727687257344,28.91599,156.65,156.58,1.27706514]
[1727687257345,20.12549,156.64,156.58,1.27706514]
[1727687258137,0.12549,156.64,156.59,16.05012474]
[1727687258352,0.12549,156.64,156.6,1.27699906]
[1727687258656,0.12549,156.64,156.6,1.27701066]
[1727687258862,0.12549,156.64,156.59,16.05012474]
[1727687259567,0.12549,156.64,156.57,16.05012474]
[1727687259985,6.50949,156.64,156.57,16.05012474]
[1727687260443,6.3845,156.63,156.55,16.05012474]
[1727687261056,6.3845,156.63,156.56,20.0]
[1727687261867,6.3849,156.62,156.56,20.0]
[1727687262949,6.3845,156.63,156.57,1.27722266]
[1727687263160,0.12549,156.62,156.57,1.27722266]
[1727687265039,0.12549,156.62,156.56,20.0]
[1727687265267,6.51039,156.62,156.56,20.0]
[1727687265773,6.3853,156.61,156.53,16.05012474]
[1727687266070,6.3853,156.61,156.54,20.0]
[1727687267275,0.12549,156.6,156.54,20.0]
[1727687270070,0.12549,156.6,156.55,1.27737138]
[1727687270380,6.3849,156.62,156.55,1.27737138]
[1727687270753,0.12549,156.61,156.55,1.27737138]
[1727687270955,0.12549,156.63,156.55,17.32749612]
[1727687271464,20.0,156.62,156.56,1.27723504]
[1727687272359,6.3852,156.62,156.54,20.0]
[1727687274775,6.3853,156.61,156.54,20.0]
[1727687276571,6.3853,156.61,156.53,16.05012474]
[1727687277072,6.3853,156.61,156.54,20.0]
[1727687279587,6.3853,156.61,156.56,10.27307113]
[1727687280569,6.2131,156.59,156.54,10.27307113]
[1727687282080,12.5994,156.59,156.54,10.27307113]
[1727687282385,16.1546,156.57,156.52,10.27307113]
[1727687282960,16.1546,156.57,156.54,10.27307113]
[1727687285869,16.1546,156.57,156.47,20.0]
[1727687286082,16.1546,156.57,156.52,10.27307113]
[1727687288093,16.1546,156.57,156.53,1.27755664]
[1727687289066,16.1546,156.57,156.54,10.27307113]
[1727687289273,16.1546,156.57,156.56,10.27307113]
[1727687289683,6.2131,156.59,156.56,10.27307113]
[1727687290989,22.8088,156.61,156.58,10.27307113]
[1727687290990,16.4235,156.61,156.58,10.27307113]
[1727687293206,16.4235,156.61,156.52,43.902374]
[1727687293500,16.4235,156.61,156.57,10.27307113]
[1727687294989,16.4235,156.61,156.58,1.27722046]
[1727687295697,16.4235,156.61,156.59,10.27307113]
[1727687296799,16.4235,156.61,156.57,10.27307113]
[1727687300804,0.12549,156.6,156.45,22.9022]
[1727687301112,6.3862,156.59,156.52,10.27307113]
[1727687301279,0.12549,156.6,156.52,10.27307113]
[1727687301280,0.12549,156.58,156.52,10.27307113]
[1727687301480,6.3866,156.58,156.52,10.27307113]
[1727687301680,13.0268,156.58,156.52,10.27307113]
[1727687303487,13.0268,156.58,156.49,16.05925401]
[1727687303882,22.0169,156.56,156.47,16.05925401]
[1727687304285,15.6293,156.56,156.49,16.05925401]
[1727687304486,15.6293,156.56,156.5,1.27761303]
[1727687305079,15.6293,156.56,156.51,16.05925401]
[1727687305282,15.6293,156.56,156.52,1.27755174]
[1727687308824,15.2132,156.6,156.55,16.05925401]
[1727687309033,9.60451181,156.63,156.56,1.27718829]
[1727687309322,6.2657,156.63,156.56,1.27718829]
[1727687310298,6.2657,156.63,156.55,16.05925401]
[1727687310826,6.2657,156.63,156.56,23.776884]
[1727687311009,6.2657,156.63,156.57,17.33624525]
[1727687311412,15.2132,156.64,156.59,16.05925401]
[1727687311625,15.2132,156.64,156.6,1.27691249]
[1727687313235,15.2132,156.64,156.59,16.05925401]
[1727687315144,21.5972,156.64,156.59,16.05925401]
[1727687315650,15.2132,156.64,156.6,1.2770804]
[1727687316644,15.2132,156.64,156.59,16.05925401]
[1727687317262,15.2132,156.64,156.58,20.0]
[1727687317628,21.5974,156.64,156.58,20.0]
[1727687317825,6.3845,156.63,156.58,20.0]
[1727687318144,21.5973,156.64,156.58,20.0]
[1727687318325,21.5973,156.64,156.57,16.05925401]
[1727687318641,6.3845,156.63,156.57,16.05925401]
[1727687319441,12.9231,156.62,156.55,16.05925401]
[1727687323652,12.9231,156.62,156.5,16.0682]
[1727687323653,0.12549,156.61,156.53,16.05925401]
[1727687323844,6.3857,156.6,156.54,20.0]
[1727687324633,6.3857,156.6,156.53,16.05925401]
[1727687324938,6.3861,156.59,156.53,16.05925401]
[1727687325656,6.3861,156.59,156.51,16.05925401]
[1727687326254,16.6242,156.6,156.51,16.05925401]
[1727687326255,23.01,156.6,156.51,16.05925401]
[1727687326857,23.01,156.6,156.52,20.0]
[1727687328461,16.6242,156.6,156.52,20.0]
[1727687328854,0.12549,156.59,156.52,20.0]
[1727687329245,6.51169,156.59,156.52,20.0]
[1727687330963,6.3866,156.58,156.49,36.05925401]
[1727687331165,6.3927,156.57,156.49,36.05925401]
[1727687332964,12.7796,156.57,156.49,36.05925401]
[1727687333571,12.7796,156.57,156.51,10.27887989]
[1727687333740,15.6436,156.56,156.51,10.27887989]
[1727687335959,15.6436,156.56,156.44,20.0]
[1727687336152,22.031,156.56,156.49,10.27887989]
[1727687338463,6.3877,156.55,156.49,10.27887989]
[1727687339266,15.6436,156.56,156.49,10.27887989]
[1727687339446,22.031,156.56,156.49,10.27887989]
[1727687339855,22.031,156.56,156.5,1.27778197]
[1727687341670,22.031,156.56,156.49,10.27887989]
[1727687343165,22.031,156.56,156.5,1.27778399]
[1727687343471,6.3879,156.55,156.49,10.27887989]
[1727687345969,15.6436,156.56,156.49,10.27887989]
[1727687347049,6.3879,156.55,156.51,6.389]
[1727687351584,22.031,156.56,156.51,6.389]
[1727687354774,15.6436,156.56,156.55,6.3877]
[1727687358463,15.6436,156.56,156.5,8.0029273]
[1727687358771,15.6436,156.56,156.54,6.3881]
[1727687359181,3.33881181,156.64,156.53,10.27887989]
[1727687359489,12.6706,156.62,156.57,6.3868]
[1727687360991,6.2856,156.62,156.58,6.3863]
[1727687362268,0.12549,156.61,156.55,10.27887989]
[1727687362603,6.51109,156.61,156.56,6.3871]
[1727687366501,6.3857,156.6,156.56,6.3871]
[1727687370196,6.3861,156.59,156.55,6.3876]
[1727687370396,6.3861,156.59,156.54,6.388]
[1727687370596,0.12549,156.61,156.54,6.388]
[1727687370597,6.3865,156.58,156.54,6.388]
[1727687372306,22.342,156.58,156.54,6.388]
[1727687372686,22.342,156.58,156.51,10.27887989]
[1727687372916,22.342,156.58,156.53,6.3884]
[1727687373117,22.342,156.58,156.54,5.01419409]
[1727687373288,22.342,156.58,156.53,6.3884]
[1727687373484,22.342,156.58,156.54,5.01459356]
[1727687373788,22.342,156.58,156.53,6.3884]
[1727687374389,6.4818,156.57,156.53,6.3884]
[1727687376092,12.8688,156.57,156.53,6.3884]
[1727687380594,12.8688,156.57,156.52,6.3886]
[1727687380799,12.8688,156.57,156.53,5.01530466]
[1727687381000,12.8688,156.57,156.52,6.3886]
[1727687381187,12.8688,156.57,156.53,5.01494498]
[1727687381388,12.8688,156.57,156.52,6.3886]
[1727687381886,12.8688,156.57,156.53,5.01506708]
[1727687382112,12.8688,156.57,156.52,6.3886]
[1727687382314,12.8688,156.57,156.53,5.01496505]
[1727687382506,12.8688,156.57,156.52,6.3886]
[1727687382703,6.4818,156.57,156.53,5.01494682]
[1727687382901,6.3874,156.56,156.52,6.3889]
[1727687386722,6.3874,156.56,156.51,6.3893]
[1727687386904,6.3874,156.56,156.52,5.0159745]
[1727687387221,6.3874,156.56,156.51,6.3893]
[1727687387425,6.3874,156.56,156.52,5.01613761]
[1727687387608,6.3874,156.56,156.51,6.3893]
[1727687387925,6.3874,156.56,156.52,5.01612069]
[1727687388131,6.3874,156.56,156.51,6.3893]
[1727687388433,6.3874,156.56,156.52,5.01600584]
[1727687388599,6.3874,156.56,156.51,6.3893]
[1727687389026,6.3874,156.56,156.52,5.01678084]
[1727687389524,6.3874,156.56,156.51,6.3893]
[1727687392134,6.51319,156.55,156.51,6.3893]
[1727687396323,6.3882,156.54,156.5,6.3896]
[1727687397814,6.3888,156.53,156.47,10.27887989]
[1727687398023,6.3888,156.53,156.49,6.39]
[1727687400753,0.12549,156.56,156.47,6.3908]
[1727687400754,28.0278,156.52,156.47,6.3908]
[1727687401648,28.0278,156.52,156.48,6.3905]
[1727687402149,21.6388,156.52,156.48,6.3905]
[1727687403337,21.6388,156.52,156.45,10.27887989]
[1727687403534,6.3894,156.51,156.47,6.3908]
[1727687405842,6.3894,156.51,156.45,10.27887989]
[1727687406360,6.3898,156.5,156.46,6.3912]
[1727687406729,26.51489,156.51,156.46,6.3912]
[1727687407956,21.6388,156.52,156.48,6.3903]
[1727687409059,27.8498,156.56,156.51,6.389]
[1727687409239,21.4624,156.56,156.52,6.3886]
[1727687409440,21.4624,156.56,156.53,6.3884]
[1727687409745,21.4624,156.56,156.55,6.3877]
[1727687410059,29.2404,156.6,156.55,6.3877]
[1727687411041,6.3861,156.59,156.55,6.3877]
[1727687411862,6.3865,156.58,156.54,6.3881]
[1727687412060,6.3865,156.58,156.53,10.27887989]
[1727687412663,26.51159,156.59,156.54,6.388]
[1727687415465,6.3866,156.58,156.53,16.66727989]
[1727687417854,6.3866,156.58,156.54,6.388]
[1727687418067,20.0,156.59,156.55,16.66637989]
[1727687418380,16.6367,156.6,156.57,6.3868]
[1727687418694,16.6367,156.6,156.56,6.3872]
[1727687419276,6.3853,156.61,156.57,16.66567989]
[1727687419468,6.385,156.62,156.58,6.3865]
[1727687419666,20.0,156.59,156.5,44.027864]
[1727687419876,20.0,156.59,156.54,10.27887989]
[1727687420375,6.3861,156.59,156.55,6.3874]
[1727687421077,6.3861,156.59,156.54,6.388]
[1727687421473,6.3865,156.58,156.53,6.3885]
[1727687422272,24.027864,156.62,156.53,6.3885]
[1727687422476,6.3869,156.57,156.52,10.27887989]
[1727687422779,20.0,156.61,156.51,6.3892]
[1727687422780,6.3873,156.56,156.51,6.3892]
[1727687423653,44.027864,156.57,156.51,6.3892]
[1727687423861,6.3878,156.55,156.51,6.3892]
[1727687424256,21.6294,156.58,156.52,6.3888]
[1727687424257,6.3873,156.56,156.52,6.3888]
[1727687424473,21.6294,156.58,156.55,6.3877]
[1727687424663,6.3862,156.59,156.54,16.66657989]
[1727687431683,6.3862,156.59,156.54,6.3877]
[1727687431888,20.25098,156.61,156.53,6.3884]
[1727687432071,6.3869,156.57,156.51,25.75877989]
[1727687432594,6.3869,156.57,156.52,1.27765149]
[1727687433167,6.3869,156.57,156.53,6.3885]
[1727687439386,20.12549,156.59,156.52,1.27765149]
[1727687439598,26.3853,156.61,156.56,6.3869]
[1727687439898,6.3846,156.63,156.59,6.3859]
[1727687440075,9.72281181,156.64,156.59,16.66477989]
[1727687440595,6.384,156.64,156.59,16.66477989]
[1727687440971,6.3845,156.63,156.59,16.66477989]
[1727687441587,6.3845,156.63,156.59,6.3859]
[1727687442093,6.3845,156.63,156.58,6.3864]
[1727687447081,6.3849,156.62,156.57,6.3865]
[1727687447399,20.0,156.63,156.59,6.3858]
[1727687447606,26.3845,156.63,156.58,6.3864]
[1727687448903,26.3841,156.64,156.59,1.27716502]
[1727687449091,3.33881181,156.68,156.6,10.27887989]
[1727687449287,3.33881181,156.68,156.6,11.55582625]
[1727687449604,6.3833,156.66,156.61,6.3852]
[1727687449770,6.3833,156.66,156.6,11.55582625]
[1727687449771,3.33881181,156.68,156.62,11.55579498]
[1727687449975,6.3824,156.69,156.63,6.3841]
[1727687451103,20.0,156.68,156.63,6.3841]
[1727687451894,6.3825,156.68,156.63,6.3841]
[1727687453603,20.0,156.69,156.63,6.3841]
[1727687453775,6.3828,156.67,156.63,6.3841]
[1727687454797,6.3828,156.67,156.64,10.27887989]
[1727687455601,20.0,156.69,156.62,10.27887989]
[1727687455781,20.12549,156.67,156.59,16.0879]
[1727687456099,20.12549,156.67,156.61,10.27887989]
[1727687456287,20.12549,156.67,156.62,5.00081074]
[1727687456487,20.12549,156.67,156.61,10.27887989]
[1727687456697,20.12549,156.67,156.62,4.99767254]
[1727687456895,20.12549,156.67,156.61,10.27887989]
[1727687457083,6.3837,156.65,156.61,10.27887989]
[1727687459104,6.3841,156.64,156.6,6.3853]
[1727687459316,6.3841,156.64,156.6,16.66417989]
[1727687459610,6.3837,156.65,156.6,16.66417989]
[1727687460379,20.12549,156.67,156.59,16.0879]
[1727687460586,6.3844,156.63,156.59,22.4739]
[1727687460790,6.3844,156.63,156.57,10.27887989]
[1727687461119,6.3853,156.61,156.56,6.3872]
[1727687461581,6.3843,156.64,156.59,6.386]
[1727687461788,26.3846,156.63,156.59,6.386]
[1727687462095,0.12549,156.67,156.59,6.386]
[1727687462096,6.3841,156.64,156.6,7.66253248]
[1727687464989,6.3841,156.64,156.6,6.3855]
[1727687465688,0.12549,156.67,156.59,6.386]
[1727687465689,6.3844,156.63,156.59,6.386]
[1727687465888,0.12549,156.67,156.59,6.386]
[1727687466189,6.3841,156.64,156.59,6.386]
[1727687466405,6.3852,156.62,156.57,6.3869]
[1727687466590,20.25098,156.65,156.57,11.37809423]
[1727687466795,20.25098,156.65,156.57,6.3869]
[1727687467200,6.3857,156.6,156.56,15.27115602]
[1727687467513,36.21078,156.65,156.55,16.3857]
[1727687467514,6.3853,156.61,156.55,16.3857]
[1727687467689,6.3853,156.61,156.56,6.3869]
[1727687468413,6.3857,156.6,156.56,6.3869]
[1727687468912,6.3862,156.59,156.55,4.99364596]
[1727687469095,6.3862,156.59,156.54,6.388]
[1727687470198,6.3865,156.58,156.54,6.388]
[1727687473121,20.25098,156.62,156.51,15.3111]
[1727687473297,6.387,156.57,156.52,20.0]
[1727687473697,6.387,156.57,156.52,24.99707732]
[1727687473900,6.387,156.57,156.53,4.99707732]
[1727687474313,6.387,156.57,156.52,26.3886]
[1727687474522,6.387,156.57,156.52,20.0]
[1727687474696,6.3865,156.58,156.53,6.3884]
[1727687476122,20.25098,156.62,156.46,13.31521407]
[1727687476420,6.3873,156.56,156.52,6.3888]
[1727687476620,6.3869,156.57,156.52,6.3888]
[1727687479892,6.3869,156.57,156.52,16.66767989]
[1727687480097,6.3869,156.57,156.52,6.3888]
[1727687481727,6.112,156.59,156.5,10.27887989]
[1727687481899,6.3877,156.55,156.51,6.3893]
[1727687482603,6.3873,156.56,156.51,6.3893]
[1727687484822,6.3882,156.54,156.5,6.3897]
[1727687484998,16.1028,156.57,156.5,6.3897]
[1727687485198,6.3878,156.55,156.48,34.05576389]
[1727687485418,6.3878,156.55,156.51,6.3893]
[1727687486828,6.3878,156.55,156.5,6.3896]
[1727687488100,6.3878,156.55,156.51,6.3892]
[1727687489817,6.3878,156.55,156.5,6.3897]
[1727687492840,16.1028,156.57,156.48,6.3905]
[1727687492841,6.3886,156.53,156.48,6.3905]
[1727687494123,6.5537,156.54,156.47,6.3908]
[1727687494316,6.5537,156.54,156.38,15.2964]
[1727687494317,6.3901,156.5,156.38,15.2964]
[1727687494510,6.3901,156.5,156.43,10.27887989]
[1727687494911,6.3901,156.5,156.46,6.3913]
[1727687495136,35.33969,156.53,156.46,6.3913]
[1727687495137,6.3894,156.51,156.46,6.3913]
[1727687495322,20.0,156.5,156.46,6.3913]
[1727687495641,6.3894,156.51,156.46,6.3913]
[1727687500446,6.39,156.5,156.45,6.3917]
[1727687501526,35.2142,156.53,156.4,10.27887989]
[1727687501527,6.3906,156.48,156.4,10.27887989]
[1727687501755,6.3906,156.48,156.43,6.3926]
[1727687501916,6.3906,156.48,156.4,10.27887989]
[1727687501917,22.082,156.47,156.42,6.3929]
[1727687502520,22.082,156.47,156.4,10.27887989]
[1727687502726,22.082,156.47,156.43,6.3925]
[1727687503059,15.691,156.47,156.43,6.3925]
[1727687506157,22.0821,156.47,156.43,6.3925]
[1727687506446,6.3918,156.45,156.41,6.3934]
[1727687506754,6.3918,156.45,156.4,6.3937]
[1727687507978,6.3918,156.45,156.38,10.27887989]
[1727687507979,6.0272,156.45,156.34,16.2014171]
[1727687508141,20.0,156.44,156.35,10.27887989]
[1727687508349,6.3927,156.43,156.38,6.3946]
[1727687508641,26.3923,156.44,156.39,6.3942]
[1727687509554,20.0,156.44,156.4,6.3938]
[1727687509753,26.3922,156.44,156.4,6.3938]
[1727687509952,20.0,156.44,156.4,6.3938]
[1727687514658,26.3922,156.44,156.4,6.3938]
[1727687518344,26.3922,156.44,156.39,6.3942]
[1727687518775,20.0,156.44,156.39,6.3942]
[1727687518941,6.3928,156.43,156.38,6.3946]
[1727687519983,6.3928,156.43,156.36,10.27887989]
[1727687520280,20.0,156.44,156.38,10.27887989]
[1727687520281,26.3923,156.44,156.38,10.27887989]
[1727687520492,26.3923,156.44,156.4,6.3937]
[1727687522286,26.3923,156.44,156.39,6.3941]
[1727687523584,6.0272,156.45,156.41,6.3934]
[1727687523798,6.0272,156.45,156.34,16.2014171]
[1727687523799,6.0272,156.45,156.42,6.3929]
[1727687524090,15.691,156.47,156.42,6.3929]
[1727687524091,22.082,156.47,156.42,7.67147781]
[1727687524881,22.082,156.47,156.42,6.3929]
[1727687526371,22.082,156.47,156.43,6.3926]
[1727687526572,22.082,156.47,156.42,6.3929]
[1727687527101,22.082,156.47,156.43,6.3926]
[1727687528479,6.3918,156.45,156.34,16.2014171]
[1727687528682,6.3918,156.45,156.38,20.0]
[1727687529190,6.3918,156.45,156.4,6.3937]
[1727687530194,6.3922,156.44,156.38,20.0]
[1727687530393,6.3922,156.44,156.39,6.3941]
[1727687530620,6.3926,156.43,156.39,6.3941]
[1727687530904,6.3923,156.44,156.39,6.3941]
[1727687532089,6.3927,156.43,156.38,6.3946]
[1727687532285,15.9073,156.43,156.37,6.395]
[1727687532607,6.3931,156.42,156.37,6.395]
[1727687537292,22.3,156.43,156.38,6.3945]
[1727687537892,6.393,156.42,156.38,6.3945]
[1727687538090,6.393,156.42,156.34,0.2622171]
[1727687538307,6.3938,156.41,156.35,5.00448168]
[1727687538593,6.3938,156.41,156.34,0.2622171]
[1727687538910,6.3938,156.41,156.35,5.0064312]
[1727687539111,6.3938,156.41,156.34,1.54120109]
[1727687539295,6.3938,156.41,156.35,5.00572028]
[1727687539488,6.3938,156.41,156.34,1.54120109]
[1727687539697,6.3938,156.41,156.35,5.00779877]
[1727687539902,6.3938,156.41,156.34,1.54120109]
[1727687540107,6.3938,156.41,156.37,6.395]
[1727687540493,6.3938,156.41,156.34,0.2622171]
[1727687540692,6.3938,156.41,156.36,6.3954]
[1727687541107,6.4899,156.42,156.36,6.3954]
[1727687541411,6.51969,156.4,156.35,6.3957]
[1727687541604,6.3944,156.39,156.35,6.3957]
[1727687542891,15.1238,156.38,156.35,6.3957]
[1727687543117,15.1238,156.38,156.34,6.6582171]
[1727687543791,15.1238,156.38,156.34,0.2622171]
[1727687543998,15.1238,156.38,156.34,6.6584171]
[1727687544592,21.5184,156.38,156.34,6.6584171]
[1727687544797,21.5184,156.38,156.34,0.2622171]
[1727687546106,6.4017,156.37,156.34,0.2622171]
[1727687546297,6.3956,156.36,156.34,0.2622171]
[1727687546497,6.4017,156.37,156.34,0.2622171]
[1727687547310,0.12549,156.36,156.34,0.2622171]
[1727687547511,20.12549,156.36,156.34,0.2622171]
[1727687547824,6.3959,156.35,156.34,0.2622171]
[1727687548519,26.52099,156.36,156.34,0.2622171]
[1727687548919,26.3955,156.36,156.34,0.2622171]
[1727687549099,20.0,156.36,156.34,0.2622171]
[1727687549810,26.3955,156.36,156.34,0.2622171]
[1727687550516,20.0,156.36,156.34,0.2622171]
[1727687555836,20.0,156.36,156.34,6.6584171]
[1727687557234,20.0,156.36,156.34,0.2622171]
[1727687558238,26.3956,156.36,156.34,0.2622171]
[1727687558444,20.0,156.36,156.34,0.2622171]
[1727687558937,26.3958,156.36,156.34,0.2622171]
[1727687561546,20.0,156.36,156.34,0.2622171]
[1727687562211,12.7968,156.37,156.34,0.2622171]
[1727687562413,20.0,156.36,156.34,0.2622171]
[1727687568239,12.7968,156.37,156.34,0.2622171]
[1727687571239,15.1238,156.38,156.34,6.6584171]
[1727687579358,21.5185,156.38,156.34,6.6584171]
[1727687579530,6.3947,156.38,156.34,6.6584171]